[Event "Juniorallsvenskan 2019, Division 1 and 2"]
[Site "Molnlycke kulturhus, Biblioteksgatan 2, Molnlycke, Sweden"]
[Date "2019.11.23"]
[Round "3.1"]
[White "Torngren, Gustav"]
[Black "Jogstad, Martin"]
[Result "1/2-1/2"]
[TimeControl "90 minutes + 30 seconds per move from move one"]
[WhiteTitle "CM"]
[BlackTitle "FM"]
[WhiteFideId "1728970"]
[BlackFideId "1715364"]
[WhiteElo "2247"]
[BlackElo "2305"]

1. e4 {[%clk 01:30:55]} {[%emt 00:00:05]} c5 {[%clk 01:30:48]} {[%emt
00:00:11]} 2. d3 {[%clk 01:31:20]} {[%emt 00:00:06]} e6 {[%clk 01:30:29]}
{[%emt 00:00:49]} 3. f4 {[%clk 01:31:10]} {[%emt 00:00:39]} d5 {[%clk
01:30:42]} {[%emt 00:00:17]} 4. Nd2 {[%clk 01:31:26]} {[%emt 00:00:14]} Nc6
{[%clk 01:28:37]} {[%emt 00:02:35]} 5. Ngf3 {[%clk 01:31:30]} {[%emt 00:00:27]}
g6 {[%clk 01:23:53]} {[%emt 00:05:14]} 6. Be2 {[%clk 01:30:24]} {[%emt
00:01:36]} Bg7 {[%clk 01:23:51]} {[%emt 00:00:31]} 7. O-O {[%clk 01:30:38]}
{[%emt 00:00:17]} Nge7 {[%clk 01:24:07]} {[%emt 00:00:14]} 8. c3 {[%clk
01:28:33]} {[%emt 00:02:35]} b5 {[%clk 01:23:18]} {[%emt 00:01:19]} 9. a4
{[%clk 01:04:29]} {[%emt 00:24:34]} b4 {[%clk 01:18:01]} {[%emt 00:05:46]} 10.
e5 {[%clk 01:04:14]} {[%emt 00:00:45]} Qb6 {[%clk 01:13:21]} {[%emt 00:05:10]}
11. Nb3 {[%clk 01:02:55]} {[%emt 00:01:51]} c4+ {[%clk 01:08:20]} {[%emt
00:05:30]} 12. Nbd4 {[%clk 01:03:13]} {[%emt 00:00:12]} cxd3 {[%clk 00:51:52]}
{[%emt 00:16:58]} 13. Bxd3 {[%clk 01:01:04]} {[%emt 00:02:38]} Ba6 {[%clk
00:52:09]} {[%emt 00:00:14]} 14. a5 {[%clk 00:57:08]} {[%emt 00:04:26]} Qb7
{[%clk 00:51:02]} {[%emt 00:01:36]} 15. Bxa6 {[%clk 00:57:26]} {[%emt
00:00:13]} Qxa6 {[%clk 00:51:23]} {[%emt 00:00:09]} 16. cxb4 {[%clk 00:57:46]}
{[%emt 00:00:10]} Qc4 {[%clk 00:38:52]} {[%emt 00:13:00]} 17. Qa4 {[%clk
00:39:21]} {[%emt 00:18:55]} Qxb4 {[%clk 00:38:15]} {[%emt 00:01:07]} 18. Qxb4
{[%clk 00:34:58]} {[%emt 00:04:53]} Nxb4 {[%clk 00:38:42]} {[%emt 00:00:03]} 19.
Nb5 {[%clk 00:34:09]} {[%emt 00:01:19]} O-O {[%clk 00:37:13]} {[%emt 00:01:59]}
20. Bd2 {[%clk 00:31:00]} {[%emt 00:03:40]} Nbc6 {[%clk 00:36:36]} {[%emt
00:01:07]} 21. a6 {[%clk 00:27:53]} {[%emt 00:03:37]} Rab8 {[%clk 00:36:32]}
{[%emt 00:00:34]} 22. Nfd4 {[%clk 00:28:10]} {[%emt 00:00:13]} Nxd4 {[%clk
00:35:38]} {[%emt 00:01:23]} 23. Nxd4 {[%clk 00:28:34]} {[%emt 00:00:06]} Rxb2
{[%clk 00:20:28]} {[%emt 00:15:40]} 24. Be3 {[%clk 00:28:54]} {[%emt 00:00:11]}
Rc8 {[%clk 00:20:00]} {[%emt 00:00:57]} 25. Rfc1 {[%clk 00:24:43]} {[%emt
00:04:41]} Rc4 {[%clk 00:19:33]} {[%emt 00:00:57]} 26. Rcb1 {[%clk 00:20:04]}
{[%emt 00:05:10]} Ra4 {[%clk 00:17:13]} {[%emt 00:02:50]} 27. Rxa4 {[%clk
00:18:57]} {[%emt 00:01:38]} Rxb1+ {[%clk 00:17:39]} {[%emt 00:00:03]} 28. Kf2
{[%clk 00:19:25]} Bf8 {[%clk 00:16:57]} {[%emt 00:01:12]} 29. Ra2 {[%clk
00:15:44]} {[%emt 00:04:12]} Rb8 {[%clk 00:09:48]} {[%emt 00:07:39]} 30. g4
{[%clk 00:14:53]} {[%emt 00:01:21]} Rb1 {[%clk 00:05:12]} {[%emt 00:05:06]} 31.
h3 {[%clk 00:13:25]} {[%emt 00:01:59]} Rh1 {[%clk 00:04:43]} {[%emt 00:00:58]}
32. Kg2 {[%clk 00:13:50]} {[%emt 00:00:04]} Rb1 {[%clk 00:04:44]} {[%emt
00:00:29]} 33. Kf2 {[%clk 00:12:57]} {[%emt 00:01:23]} Rh1 {[%clk 00:05:10]}
{[%emt 00:00:05]} 34. Kg2 {[%clk 00:13:09]} {[%emt 00:00:19]} Rb1 {[%clk
00:05:38]} {[%emt 00:00:02]} 35. Kf3 {[%clk 00:07:59]} {[%emt 00:05:40]} Rb4
{[%clk 00:04:58]} {[%emt 00:01:09]} 36. Kg3 {[%clk 00:06:41]} {[%emt 00:01:49]}
Rb1 {[%clk 00:04:37]} {[%emt 00:00:51]} 37. Kg2 {[%clk 00:06:33]} {[%emt
00:00:38]} Rb8 {[%clk 00:03:40]} {[%emt 00:01:27]} 38. Kf3 {[%clk 00:06:38]}
{[%emt 00:00:24]} Rb4 {[%clk 00:03:41]} {[%emt 00:00:29]} 39. h4 {[%clk
00:04:35]} {[%emt 00:02:34]} Rb1 {[%clk 00:04:05]} {[%emt 00:00:06]} 40. h5
{[%clk 00:04:45]} {[%emt 00:00:20]} Rb4 {[%clk 00:04:20]} {[%emt 00:00:15]} 41.
hxg6 {[%clk 00:04:57]} {[%emt 00:00:18]} hxg6 {[%clk 00:04:48]} {[%emt
00:00:02]} 42. Kf2 {[%clk 00:04:08]} {[%emt 00:01:19]} Rb1 {[%clk 00:04:34]}
{[%emt 00:00:45]} 43. Kg3 {[%clk 00:04:18]} {[%emt 00:00:19]} Rb4 {[%clk
00:04:32]} {[%emt 00:00:32]} 44. Kf3 {[%clk 00:04:44]} {[%emt 00:00:04]} Rb1
{[%clk 00:04:59]} {[%emt 00:00:03]} 45. Ra4 {[%clk 00:04:35]} {[%emt 00:00:39]}
Rb2 {[%clk 00:03:58]} {[%emt 00:01:30]} 46. Ra1 {[%clk 00:05:03]} {[%emt
00:00:02]} Rb4 {[%clk 00:03:52]} {[%emt 00:00:37]} 47. Ra2 {[%clk 00:04:00]}
{[%emt 00:01:33]} Rb1 {[%clk 00:04:10]} {[%emt 00:00:12]} 48. Kf2 {[%clk
00:03:57]} {[%emt 00:00:33]} Rb8 {[%clk 00:04:23]} {[%emt 00:00:17]} 49. Kg2
{[%clk 00:04:01]} {[%emt 00:00:26]} Rb1 {[%clk 00:04:46]} {[%emt 00:00:06]} 50.
Kf3 {[%clk 00:04:11]} {[%emt 00:00:21]} Rb8 {[%clk 00:05:10]} {[%emt 00:00:06]}
51. Ra1 {[%clk 00:03:27]} {[%emt 00:01:14]} Rb2 {[%clk 00:05:34]} {[%emt
00:00:06]} 52. Kg3 {[%clk 00:03:54]} {[%emt 00:00:03]} Rb4 {[%clk 00:05:53]}
{[%emt 00:00:11]} 53. Kf2 {[%clk 00:03:57]} {[%emt 00:00:27]} Rb8 {[%clk
00:05:06]} {[%emt 00:01:18]} 54. Kg2 {[%clk 00:04:11]} {[%emt 00:00:15]} Rb4
{[%clk 00:05:26]} {[%emt 00:00:10]} 55. Kf3 {[%clk 00:04:38]} {[%emt 00:00:04]}
Rb8 {[%clk 00:05:45]} {[%emt 00:00:10]} 56. f5 {[%clk 00:04:15]} {[%emt
00:00:54]} exf5 {[%clk 00:05:47]} {[%emt 00:00:28]} 57. gxf5 {[%clk 00:04:43]}
{[%emt 00:00:03]} gxf5 {[%clk 00:05:58]} {[%emt 00:00:18]} 58. Rg1+ {[%clk
00:04:18]} {[%emt 00:00:55]} Ng6 {[%clk 00:05:52]} {[%emt 00:00:36]} 59. Nxf5
{[%clk 00:04:35]} {[%emt 00:00:13]} Rb3 {[%clk 00:05:50]} {[%emt 00:00:32]} 60.
e6 {[%clk 00:03:30]} {[%emt 00:01:35]} d4 {[%clk 00:02:53]} {[%emt 00:03:26]}
61. Nxd4 {[%clk 00:01:56]} {[%emt 00:02:05]} Rb6 {[%clk 00:03:13]} {[%emt
00:00:09]} 62. exf7+ {[%clk 00:01:34]} {[%emt 00:00:52]} Kxf7 {[%clk 00:03:40]}
{[%emt 00:00:03]} 63. Ra1 {[%clk 00:01:59]} {[%emt 00:00:06]} Ne5+ {[%clk
00:03:25]} {[%emt 00:00:44]} 64. Ke4 {[%clk 00:02:23]} {[%emt 00:00:06]} Nc4
{[%clk 00:03:34]} {[%emt 00:00:21]} 65. Bg1 {[%clk 00:01:57]} {[%emt 00:00:56]}
Na3 {[%clk 00:02:30]} {[%emt 00:01:34]} 66. Rc1 {[%clk 00:01:05]} {[%emt
00:01:23]} Rxa6 {[%clk 00:02:11]} {[%emt 00:00:50]} 67. Rc7+ {[%clk 00:01:34]}
Kg6 {[%clk 00:01:32]} {[%emt 00:01:08]} 68. Nc6 {[%clk 00:00:40]} {[%emt
00:01:24]} Bd6 {[%clk 00:01:15]} {[%emt 00:00:46]} 69. Ne5+ {[%clk 00:00:42]}
{[%emt 00:00:29]} Bxe5 {[%clk 00:01:19]} {[%emt 00:00:25]} 70. Kxe5 {[%clk
00:01:10]} {[%emt 00:00:03]} Nb5 {[%clk 00:01:16]} {[%emt 00:00:33]} 71. Rb7
{[%clk 00:00:56]} {[%emt 00:00:45]} Ra5 {[%clk 00:01:35]} {[%emt 00:00:10]} 72.
Kd5 {[%clk 00:00:54]} {[%emt 00:00:32]} a6 {[%clk 00:01:08]} {[%emt 00:00:57]}
73. Bc5 {[%clk 00:00:46]} {[%emt 00:00:38]} Ra2 {[%clk 00:00:51]} {[%emt
00:00:47]} 74. Kc6 {[%clk 00:00:42]} {[%emt 00:00:34]} Nc3 {[%clk 00:01:01]}
{[%emt 00:00:19]} 75. Bd4 {[%clk 00:00:42]} {[%emt 00:00:31]} Nb5 {[%clk
00:01:17]} {[%emt 00:00:14]} 76. Bc5 {[%clk 00:00:59]} {[%emt 00:00:13]} Kf6
{[%clk 00:01:04]} {[%emt 00:00:43]} 77. Rb6 {[%clk 00:00:58]} {[%emt 00:00:31]}
Ke6 {[%clk 00:00:59]} {[%emt 00:00:36]} 78. Kb7+ {[%clk 00:00:45]} {[%emt
00:00:43]} Kd5 {[%clk 00:01:23]} {[%emt 00:00:05]} 79. Rxa6 {[%clk 00:00:59]}
{[%emt 00:00:18]} Rg2 {[%clk 00:00:50]} {[%emt 00:01:01]} 80. Kb6 {[%clk
00:00:54]} {[%emt 00:00:35]} Rb2 {[%clk 00:01:11]} {[%emt 00:00:10]} 81. Be7
{[%clk 00:00:40]} {[%emt 00:00:43]} Nd6+ {[%clk 00:01:17]} {[%emt 00:00:24]} 82.
Kc7 {[%clk 00:00:42]} {[%emt 00:00:27]} Rb7+ {[%clk 00:00:55]} {[%emt
00:00:52]} 83. Kd8 {[%clk 00:01:11]} {[%emt 00:00:02]} Rb8+ {[%clk 00:01:10]}
{[%emt 00:00:15]} 84. Kd7 {[%clk 00:01:31]} {[%emt 00:00:10]} Rb7+ {[%clk
00:01:28]} {[%emt 00:00:12]} 85. Kd8 {[%clk 00:01:59]} {[%emt 00:00:02]} Rb8+
{[%clk 00:01:55]} {[%emt 00:00:03]} 86. Kd7 {[%clk 00:02:20]} {[%emt 00:00:10]}
Nb5 {[%clk 00:01:26]} {[%emt 00:00:58]} 87. Rh6 {[%clk 00:02:09]} {[%emt
00:00:41]} Rb7+ {[%clk 00:01:39]} {[%emt 00:00:17]} 88. Ke8 {[%clk 00:02:34]}
{[%emt 00:00:06]} Nd4 {[%clk 00:01:32]} {[%emt 00:00:36]} 89. Rh5+ {[%clk
00:02:31]} {[%emt 00:00:33]} Ke6 {[%clk 00:01:42]} {[%emt 00:00:19]} 90. Rh6+
{[%clk 00:02:50]} {[%emt 00:00:11]} Kd5 {[%clk 00:02:06]} {[%emt 00:00:06]} 91.
Rh5+ {[%clk 00:02:38]} {[%emt 00:00:42]} Ke6 {[%clk 00:02:30]} {[%emt
00:00:07]} 92. Rh6+ {[%clk 00:03:02]} {[%emt 00:00:06]} Kd5 {[%clk 00:02:11]}
{[%emt 00:00:48]} 93. Rh5+ {[%emt 00:00:15]} 1/2-1/2

[Event "Juniorallsvenskan 2019, Division 1 and 2"]
[Site "Molnlycke kulturhus, Biblioteksgatan 2, Molnlycke, Sweden"]
[Date "2019.11.23"]
[Round "3.2"]
[White "Bensryd, Hampus"]
[Black "Troberg Eskola, Love"]
[Result "0-1"]
[TimeControl "90 minutes + 30 seconds per move from move one"]
[WhiteFideId "1738330"]
[BlackFideId "1724185"]
[WhiteElo "1977"]
[BlackElo "2096"]

1. e4 {[%clk 01:30:55]} {[%emt 00:00:04]} e6 {[%clk 01:30:56]} {[%emt
00:00:05]} 2. d3 {[%clk 01:30:51]} {[%emt 00:00:33]} d5 {[%clk 01:31:20]}
{[%emt 00:00:06]} 3. Nd2 {[%clk 01:31:11]} {[%emt 00:00:10]} Nf6 {[%clk
01:31:43]} {[%emt 00:00:07]} 4. g3 {[%clk 01:31:33]} {[%emt 00:00:08]} Nc6
{[%clk 01:31:45]} {[%emt 00:00:27]} 5. Bg2 {[%clk 01:31:22]} {[%emt 00:00:41]}
dxe4 {[%clk 01:31:52]} {[%emt 00:00:23]} 6. dxe4 {[%clk 01:31:15]} {[%emt
00:00:36]} Bc5 {[%clk 01:31:44]} {[%emt 00:00:38]} 7. Ngf3 {[%clk 01:30:50]}
{[%emt 00:00:56]} e5 {[%clk 01:32:01]} {[%emt 00:00:13]} 8. O-O {[%clk
01:31:01]} {[%emt 00:00:18]} O-O {[%clk 01:32:15]} {[%emt 00:00:17]} 9. c3
{[%clk 01:29:31]} {[%emt 00:02:00]} a5 {[%clk 01:32:36]} {[%emt 00:00:08]} 10.
Qc2 {[%clk 01:27:34]} {[%emt 00:02:27]} b6 {[%clk 01:32:38]} {[%emt 00:00:28]}
11. h3 {[%clk 01:21:36]} {[%emt 00:06:28]} Ba6 {[%clk 01:31:05]} {[%emt
00:02:03]} 12. Re1 {[%clk 01:19:43]} {[%emt 00:02:24]} Nh5 {[%clk 01:31:14]}
{[%emt 00:00:20]} 13. Nb3 {[%clk 01:18:36]} {[%emt 00:01:36]} Be7 {[%clk
01:27:23]} {[%emt 00:04:21]} 14. Rd1 {[%clk 01:16:23]} {[%emt 00:02:44]} Qc8
{[%clk 01:22:57]} {[%emt 00:04:56]} 15. Be3 {[%clk 01:15:50]} {[%emt 00:01:04]}
Nf6 {[%clk 01:19:23]} {[%emt 00:04:04]} 16. a4 {[%emt 00:04:20]} Ne8 {[%clk
01:17:43]} {[%emt 00:02:07]} 17. Nbd2 {[%clk 01:08:27]} {[%emt 00:04:05]} Nd6
{[%clk 01:11:10]} {[%emt 00:07:03]} 18. Nf1 {[%clk 01:01:32]} {[%emt 00:07:26]}
Nc4 {[%clk 01:09:24]} {[%emt 00:02:15]} 19. b3 {[%clk 00:59:07]} {[%emt
00:02:55]} Nxe3 {[%clk 01:09:15]} {[%emt 00:00:39]} 20. Nxe3 {[%clk 00:59:33]}
{[%emt 00:00:04]} Re8 {[%clk 01:07:39]} {[%emt 00:02:05]} 21. Rd2 {[%clk
00:56:45]} {[%emt 00:03:19]} b5 {[%clk 00:59:08]} {[%emt 00:09:01]} 22. axb5
{[%clk 00:52:30]} {[%emt 00:04:45]} Bxb5 {[%clk 00:59:31]} {[%emt 00:00:07]} 23.
Rd5 {[%clk 00:52:07]} {[%emt 00:00:53]} Qb7 {[%clk 00:48:55]} {[%emt 00:11:06]}
24. Nxe5 {[%clk 00:48:49]} {[%emt 00:03:48]} Bd6 {[%clk 00:43:56]} {[%emt
00:05:28]} 25. N5c4 {[%clk 00:39:55]} {[%emt 00:09:25]} Bf8 {[%clk 00:43:13]}
{[%emt 00:01:13]} 26. e5 {[%clk 00:38:17]} {[%emt 00:02:08]} Bxc4 {[%clk
00:39:16]} {[%emt 00:04:28]} 27. Nxc4 {[%clk 00:37:49]} {[%emt 00:00:58]} Qa6
{[%clk 00:33:29]} {[%emt 00:06:17]} 28. Rd7 {[%clk 00:31:02]} {[%emt 00:07:17]}
Rab8 {[%clk 00:23:32]} {[%emt 00:10:27]} 29. Rxc7 {[%clk 00:24:14]} {[%emt
00:07:19]} Nxe5 {[%clk 00:21:17]} {[%emt 00:02:45]} 30. Rxa5 {[%clk 00:24:11]}
{[%emt 00:00:33]} Qf6 {[%clk 00:19:54]} {[%emt 00:01:54]} 31. Nxe5 {[%clk
00:17:49]} {[%emt 00:06:53]} Rxe5 {[%clk 00:19:27]} {[%emt 00:00:57]} 32. Rxe5
{[%clk 00:17:06]} {[%emt 00:01:13]} Qxe5 {[%clk 00:19:51]} {[%emt 00:00:06]} 33.
Rc4 {[%clk 00:14:52]} {[%emt 00:02:44]} Qb5 {[%clk 00:17:31]} {[%emt 00:02:49]}
34. Rh4 {[%clk 00:12:47]} {[%emt 00:02:35]} g6 {[%clk 00:17:06]} {[%emt
00:00:55]} 35. b4 {[%clk 00:12:46]} {[%emt 00:00:31]} Rc8 {[%clk 00:16:59]}
{[%emt 00:00:37]} 36. Qb3 {[%clk 00:12:34]} {[%emt 00:00:42]} Qe5 {[%clk
00:14:45]} {[%emt 00:02:43]} 37. Rc4 {[%clk 00:07:17]} {[%emt 00:05:47]} Qe6
{[%clk 00:14:23]} {[%emt 00:00:52]} 38. Bf1 {[%clk 00:07:44]} {[%emt 00:00:04]}
Kg7 {[%clk 00:11:31]} {[%emt 00:03:22]} 39. b5 {[%clk 00:07:16]} {[%emt
00:00:58]} Bc5 {[%clk 00:10:59]} {[%emt 00:01:02]} 40. Qc2 {[%clk 00:06:41]}
{[%emt 00:01:06]} Qe5 {[%clk 00:09:42]} {[%emt 00:01:46]} 41. Rf4 {[%clk
00:05:46]} {[%emt 00:01:25]} Bb6 {[%clk 00:08:58]} {[%emt 00:01:14]} 42. Qb3
{[%clk 00:03:21]} {[%emt 00:02:54]} Rc7 {[%clk 00:08:22]} {[%emt 00:01:06]} 43.
c4 {[%clk 00:03:26]} {[%emt 00:00:26]} Rd7 {[%clk 00:07:24]} {[%emt 00:01:28]}
44. Qc2 {[%clk 00:02:53]} {[%emt 00:01:03]} Bc5 {[%clk 00:04:10]} {[%emt
00:03:44]} 45. Rf3 {[%clk 00:01:40]} {[%emt 00:01:43]} Kg8 {[%clk 00:04:14]}
{[%emt 00:00:27]} 46. Rd3 {[%clk 00:01:54]} {[%emt 00:00:16]} Ra7 {[%clk
00:03:05]} {[%emt 00:01:39]} 47. Qc3 {[%clk 00:01:53]} {[%emt 00:00:32]} Qe7
{[%clk 00:03:00]} {[%emt 00:00:35]} 48. Qd2 {[%clk 00:01:44]} {[%emt 00:00:39]}
Qe5 {[%clk 00:02:46]} {[%emt 00:00:44]} 49. Qc3 {[%clk 00:01:19]} {[%emt
00:00:56]} Qe7 {[%clk 00:02:41]} {[%emt 00:00:34]} 50. Qb2 {[%clk 00:01:44]}
{[%emt 00:00:05]} Bb6 {[%clk 00:02:31]} {[%emt 00:00:40]} 51. Qe2 {[%clk
00:01:37]} {[%emt 00:00:37]} Qg5 {[%clk 00:02:18]} {[%emt 00:00:44]} 52. Rd5
{[%clk 00:01:24]} {[%emt 00:00:43]} Qxg3+ {[%clk 00:02:30]} {[%emt 00:00:19]}
53. Kh1 {[%clk 00:01:48]} {[%emt 00:00:06]} Qh4 {[%clk 00:01:35]} {[%emt
00:01:24]} 54. Qe8+ {[%clk 00:01:55]} {[%emt 00:00:23]} Kg7 {[%clk 00:02:01]}
{[%emt 00:00:04]} 55. Qe5+ {[%clk 00:02:12]} {[%emt 00:00:13]} f6 {[%clk
00:01:53]} {[%emt 00:00:38]} 56. Qg3 {[%clk 00:01:45]} {[%emt 00:00:57]} Qe4+
{[%clk 00:02:11]} {[%emt 00:00:12]} 57. Qg2 {[%clk 00:02:04]} {[%emt 00:00:11]}
Qc2 {[%clk 00:02:21]} {[%emt 00:00:20]} 58. Kg1 {[%clk 00:02:16]} {[%emt
00:00:19]} Ra1 {[%clk 00:02:05]} {[%emt 00:00:46]} 59. Rd7+ {[%clk 00:02:11]}
{[%emt 00:00:36]} Kh6 {[%clk 00:01:59]} {[%emt 00:00:35]} 60. Rd6 {[%clk
00:02:11]} {[%emt 00:00:30]} Bc5 {[%clk 00:01:27]} {[%emt 00:01:02]} 61. Rc6
{[%clk 00:02:34]} {[%emt 00:00:08]} Qxc4 {[%clk 00:01:23]} {[%emt 00:00:33]} 62.
Rxf6 {[%clk 00:02:28]} {[%emt 00:00:36]} Qxb5 {[%clk 00:01:23]} {[%emt
00:00:30]} 63. Rf7 {[%clk 00:02:32]} {[%emt 00:00:26]} Bd4 {[%clk 00:01:21]}
{[%emt 00:00:32]} 64. Rf4 {[%clk 00:02:35]} {[%emt 00:00:26]} Be5 {[%clk
00:01:10]} {[%emt 00:00:41]} 65. Rf7 {[%clk 00:02:54]} {[%emt 00:00:11]} Bd6
{[%clk 00:01:19]} {[%emt 00:00:21]} 66. Rf3 {[%clk 00:02:57]} {[%emt 00:00:27]}
Qe5 {[%clk 00:01:09]} {[%emt 00:00:40]} 67. Re3 {[%clk 00:02:41]} {[%emt
00:00:46]} Qb5 {[%clk 00:01:18]} {[%emt 00:00:21]} 68. Rf3 {[%clk 00:02:55]}
{[%emt 00:00:17]} Qd5 {[%clk 00:01:11]} {[%emt 00:00:37]} 69. Re3 {[%clk
00:02:21]} {[%emt 00:01:04]} Qd1 {[%clk 00:01:26]} {[%emt 00:00:14]} 70. Rf3
{[%clk 00:01:30]} {[%emt 00:01:22]} Ra5 {[%clk 00:01:27]} {[%emt 00:00:29]} 71.
Rd3 {[%clk 00:00:56]} {[%emt 00:01:04]} Qe1 {[%clk 00:01:20]} {[%emt 00:00:36]}
72. h4 {[%clk 00:00:56]} {[%emt 00:00:31]} Bb8 {[%clk 00:01:34]} {[%emt
00:00:14]} 73. Qg3 {[%clk 00:00:41]} {[%emt 00:00:46]} Bxg3 {[%clk 00:01:57]}
{[%emt 00:00:07]} 0-1

[Event "Juniorallsvenskan 2019, Division 1 and 2"]
[Site "Molnlycke kulturhus, Biblioteksgatan 2, Molnlycke, Sweden"]
[Date "2019.11.23"]
[Round "3.3"]
[White "Olsson, William"]
[Black "Ulles, Jean-Clement"]
[Result "1-0"]
[TimeControl "90 minutes + 30 seconds per move from move one"]
[WhiteFideId "1741721"]
[BlackFideId "26007029"]
[WhiteElo "2035"]
[BlackElo "1943"]

1. c4 {[%clk 01:30:59]} {[%emt 00:00:01]} Nf6 {[%clk 01:30:51]} {[%emt
00:00:08]} 2. Nc3 {[%clk 01:31:24]} {[%emt 00:00:06]} g6 {[%clk 01:30:33]}
{[%emt 00:00:48]} 3. g3 {[%clk 01:31:49]} {[%emt 00:00:05]} d5 {[%clk
01:29:26]} {[%emt 00:01:37]} 4. cxd5 {[%clk 01:32:12]} {[%emt 00:00:06]} Nxd5
{[%clk 01:29:51]} {[%emt 00:00:05]} 5. Bg2 {[%clk 01:32:36]} {[%emt 00:00:06]}
Nb6 {[%clk 01:29:19]} {[%emt 00:01:03]} 6. d4 {[%clk 01:31:18]} {[%emt
00:01:47]} Bg7 {[%clk 01:25:16]} {[%emt 00:04:32]} 7. e3 {[%clk 01:31:44]}
{[%emt 00:00:05]} O-O {[%clk 01:16:43]} {[%emt 00:09:03]} 8. Nge2 {[%clk
01:31:29]} {[%emt 00:00:44]} N8d7 {[%clk 01:15:56]} {[%emt 00:01:17]} 9. O-O
{[%clk 01:31:16]} {[%emt 00:00:43]} c6 {[%clk 01:10:20]} {[%emt 00:06:07]} 10.
a4 {[%clk 01:28:02]} {[%emt 00:03:44]} a5 {[%clk 01:06:00]} {[%emt 00:04:49]}
11. Ne4 {[%clk 01:21:39]} {[%emt 00:06:53]} Qc7 {[%clk 00:59:17]} {[%emt
00:07:13]} 12. N2c3 {[%clk 01:17:21]} {[%emt 00:04:48]} Rd8 {[%clk 00:49:09]}
{[%emt 00:10:39]} 13. Qc2 {[%clk 01:15:11]} {[%emt 00:02:39]} e5 {[%clk
00:46:09]} {[%emt 00:03:29]} 14. Rd1 {[%clk 01:14:32]} {[%emt 00:01:10]} exd4
{[%clk 00:43:11]} {[%emt 00:03:29]} 15. exd4 {[%clk 01:11:51]} {[%emt
00:03:10]} Nf8 {[%clk 00:39:03]} {[%emt 00:04:38]} 16. Bf4 {[%clk 01:09:57]}
{[%emt 00:02:25]} Qe7 {[%clk 00:30:24]} {[%emt 00:09:09]} 17. Bg5 {[%clk
01:07:41]} {[%emt 00:02:45]} f6 {[%clk 00:29:50]} {[%emt 00:01:05]} 18. Be3
{[%clk 01:06:49]} {[%emt 00:01:22]} Nc4 {[%clk 00:27:59]} {[%emt 00:02:21]} 19.
Bc1 {[%clk 01:02:09]} {[%emt 00:05:08]} Be6 {[%clk 00:23:12]} {[%emt 00:05:18]}
20. b3 {[%clk 00:59:54]} {[%emt 00:02:45]} Nb6 {[%clk 00:21:41]} {[%emt
00:02:02]} 21. Ba3 {[%clk 01:00:06]} {[%emt 00:00:19]} Qf7 {[%clk 00:21:21]}
{[%emt 00:00:49]} 22. Rab1 {[%clk 00:55:31]} {[%emt 00:05:04]} Kh8 {[%clk
00:18:58]} {[%emt 00:02:55]} 23. Nd6 {[%clk 00:53:44]} {[%emt 00:02:17]} Qc7
{[%clk 00:17:18]} {[%emt 00:02:10]} 24. Rbc1 {[%clk 00:49:35]} {[%emt
00:04:39]} Qb8 {[%clk 00:15:39]} {[%emt 00:02:08]} 25. d5 {[%clk 00:44:44]}
{[%emt 00:05:21]} Nxd5 {[%clk 00:13:51]} {[%emt 00:02:19]} 26. Nxd5 {[%clk
00:42:27]} {[%emt 00:02:46]} cxd5 {[%clk 00:14:07]} {[%emt 00:00:14]} 27. Bxd5
{[%clk 00:42:10]} {[%emt 00:00:47]} Rxd6 {[%clk 00:06:57]} {[%emt 00:07:39]} 28.
Bxd6 {[%clk 00:42:16]} {[%emt 00:00:24]} Qxd6 {[%clk 00:07:23]} {[%emt
00:00:04]} 29. Bxb7 {[%clk 00:42:40]} {[%emt 00:00:05]} Qb8 {[%clk 00:06:37]}
{[%emt 00:01:16]} 30. Bxa8 {[%clk 00:42:10]} {[%emt 00:01:00]} Qxa8 {[%clk
00:06:08]} {[%emt 00:00:59]} 31. Qd3 {[%clk 00:39:40]} {[%emt 00:03:00]} Qb7
{[%clk 00:04:42]} {[%emt 00:01:56]} 32. Qb5 {[%clk 00:37:54]} {[%emt 00:02:17]}
Qf3 {[%clk 00:02:31]} {[%emt 00:02:41]} 33. Rd3 {[%clk 00:37:23]} {[%emt
00:01:00]} Qe2 {[%clk 00:02:27]} {[%emt 00:00:34]} 34. Rdc3 {[%clk 00:30:27]}
{[%emt 00:07:27]} Qe4 {[%clk 00:01:55]} {[%emt 00:01:02]} 35. Re3 {[%clk
00:30:20]} {[%emt 00:00:37]} Qa8 {[%clk 00:01:05]} {[%emt 00:01:20]} 36. Qc6
{[%clk 00:29:48]} {[%emt 00:01:02]} Qb8 {[%clk 00:00:36]} {[%emt 00:00:59]} 37.
Rxe6 {[%clk 00:30:10]} {[%emt 00:00:08]} Nxe6 {[%clk 00:00:46]} {[%emt
00:00:19]} 38. Qxe6 {[%clk 00:30:34]} {[%emt 00:00:06]} Qg8 {[%clk 00:00:32]}
{[%emt 00:00:45]} 39. Rc8 {[%clk 00:30:57]} {[%emt 00:00:07]} 1-0